[Event "36th European Club Cup 2021"]
[Site "Struga"]
[Date "2021.09.20"]
[Round "3.12"]
[White "Goganov, Aleksey"]
[Black "Damceski, Marjan"]
[Result "1-0"]
[ECO "D06"]
[WhiteElo "2559"]
[BlackElo "2057"]
[Annotator "ChessBase"]
[PlyCount "43"]
[EventDate "2021.09.18"]
[EventType "team-tourn"]
[EventCountry "MKD"]
[SourceTitle "playchess.com"]
[Source "ChessBase"]
[SourceQuality "1"]
[TimeControl "40/5400+30:1800+30"]

1. d4 {[%emt 0:00:03]} Nf6 {[%emt 0:00:24]} 2. c4 {[%emt 0:00:05]} d5 {[%emt 0:
00:23]} 3. cxd5 {[%emt 0:00:17]} Nxd5 {[%emt 0:00:33]} 4. e4 {[%emt 0:00:13]}
Nb6 {[%emt 0:00:57]} 5. Nc3 {[%emt 0:00:18]} e6 {[%emt 0:03:49]} 6. Be3 {
[%emt 0:01:26]} N8d7 {[%emt 0:03:13]} 7. Nf3 {[%emt 0:04:26]} Nf6 {[%emt 0:02:
33]} 8. h3 {[%emt 0:01:07]} Be7 {[%emt 0:02:37]} 9. Bd3 {[%emt 0:00:12]} Bd7 {
[%emt 0:02:59]} 10. O-O {[%emt 0:03:34]} Rc8 {[%emt 0:02:09]} 11. Qe2 {[%emt 0:
02:22]} O-O {[%emt 0:05:17]} 12. Rfd1 {[%emt 0:00:19]} c6 {[%emt 0:10:11]} 13.
Rac1 {[%emt 0:02:07]} Be8 {[%emt 0:03:47]} 14. Bb1 {[%emt 0:00:26]} Nbd7 {
[%emt 0:20:13]} 15. Qd3 {[%emt 0:03:11]} g6 {[%emt 0:11:19]} 16. Bh6 {[%emt 0:
00:18]} Qb6 {[%emt 0:00:55]} 17. Qe2 {[%emt 0:02:47]} Nh5 {[%emt 0:01:44]} 18.
d5 {[%emt 0:00:28]} cxd5 {[%emt 0:14:52]} 19. Nxd5 {[%emt 0:00:21]} exd5 {
[%emt 0:03:53]} 20. Rxc8 {[%emt 0:00:08]} Ng3 {[%emt 0:02:01]} 21. Qe3 {
[%emt 0:00:39]} Bc5 {[%emt 0:02:54]} 22. Rxc5 {[%emt 0:00:07]} 1-0

[Event "36th European Club Cup 2021"]
[Site "Struga"]
[Date "2021.09.20"]
[Round "3.24"]
[White "Sychev, Klementy"]
[Black "Danielsen, Henrik"]
[Result "1-0"]
[ECO "C41"]
[WhiteElo "2556"]
[BlackElo "2521"]
[Annotator "ChessBase"]
[PlyCount "55"]
[EventDate "2021.09.18"]
[EventType "team-tourn"]
[EventCountry "MKD"]
[SourceTitle "playchess.com"]
[Source "ChessBase"]
[SourceQuality "1"]
[TimeControl "40/5400+30:1800+30"]

1. e4 {[%emt 0:00:06]} d6 {[%emt 0:00:51]} 2. d4 {[%emt 0:00:05]} Nf6 {[%emt 0:
00:29]} 3. Nc3 {[%emt 0:00:08]} e5 {[%emt 0:00:30]} 4. Nf3 {[%emt 0:09:54]}
Nbd7 {[%emt 0:00:22]} 5. Rg1 {[%emt 0:00:31]} c6 {[%emt 0:13:42]} 6. g4 {
[%emt 0:00:15]} g6 {[%emt 0:00:50]} 7. g5 {[%emt 0:00:40]} Nh5 {[%emt 0:00:31]}
8. Be3 {[%emt 0:00:06]} Qc7 {[%emt 0:01:30]} 9. Qd2 {[%emt 0:20:07]} Be7 {
[%emt 0:05:59]} 10. d5 {[%emt 0:09:33]} O-O {[%emt 0:11:20]} 11. Be2 {[%emt 0:
01:29]} Nb6 {[%emt 0:08:49]} 12. O-O-O {[%emt 0:02:48]} Qd7 {[%emt 0:18:38]}
13. h4 {[%emt 0:21:26]} cxd5 {[%emt 0:05:07]} 14. exd5 {[%emt 0:00:28]} Qh3 {
[%emt 0:03:32]} 15. Rh1 {[%emt 0:02:40]} Qf5 {[%emt 0:02:02]} 16. Nh2 {[%emt 0:
00:58]} Qd7 {[%emt 0:06:24]} 17. Ng4 {[%emt 0:02:00]} Kh8 {[%emt 0:01:15]} 18.
Rhg1 {[%emt 0:12:34]} Qe8 {[%emt 0:08:42]} 19. f4 {[%emt 0:03:02]} Bxg4 {
[%emt 0:00:20]} 20. Rxg4 {[%emt 0:00:04]} Nxf4 {[%emt 0:01:29]} 21. Bxf4 {
[%emt 0:00:31]} exf4 {[%emt 0:00:08]} 22. Rxf4 {[%emt 0:00:09]} Nd7 {[%emt 0:
00:19]} 23. Bb5 {[%emt 0:00:11]} f5 {[%emt 0:02:50]} 24. Ne2 {[%emt 0:03:31]}
a6 {[%emt 0:02:03]} 25. Bxd7 {[%emt 0:00:03]} Qxd7 {[%emt 0:00:06]} 26. Nd4 {
[%emt 0:00:01]} Rf7 {[%emt 0:01:05]} 27. Ne6 {[%emt 0:00:07]} Bf8 {[%emt 0:00:
29]} 28. h5 {[%emt 0:01:47]} 1-0

[Event "36th European Club Cup 2021"]
[Site "Struga"]
[Date "2021.09.20"]
[Round "3.27"]
[White "Asadli, Vugar"]
[Black "Roiz, Michael"]
[Result "1/2-1/2"]
[ECO "C67"]
[WhiteElo "2578"]
[BlackElo "2580"]
[Annotator "ChessBase"]
[PlyCount "127"]
[EventDate "2021.09.18"]
[EventType "team-tourn"]
[EventCountry "MKD"]
[SourceTitle "playchess.com"]
[Source "ChessBase"]
[SourceQuality "1"]
[TimeControl "40/5400+30:1800+30"]

1. e4 {[%emt 0:00:13]} e5 {[%emt 0:00:16]} 2. Nf3 {[%emt 0:00:31]} Nc6 {
[%emt 0:00:11]} 3. Bb5 {[%emt 0:00:22]} Nf6 {[%emt 0:00:34]} 4. O-O {[%emt 0:
01:07]} Nxe4 {[%emt 0:02:13]} 5. d4 {[%emt 0:00:16]} Nd6 {[%emt 0:00:05]} 6.
Bxc6 {[%emt 0:00:11]} dxc6 {[%emt 0:00:05]} 7. dxe5 {[%emt 0:00:04]} Nf5 {
[%emt 0:00:03]} 8. Qxd8+ {[%emt 0:00:07]} Kxd8 {[%emt 0:00:03]} 9. Nc3 {
[%emt 0:00:19]} Bd7 {[%emt 0:01:57]} 10. Rd1 {[%emt 0:00:50]} Kc8 {[%emt 0:01:
36]} 11. b3 {[%emt 0:00:54]} b6 {[%emt 0:22:28]} 12. Bb2 {[%emt 0:02:45]} Be7 {
[%emt 0:01:17]} 13. Rd2 {[%emt 0:13:00]} h5 {[%emt 0:08:47]} 14. Rad1 {[%emt 0:
07:55]} Be6 {[%emt 0:02:26]} 15. Ne4 {[%emt 0:01:23]} Kb7 {[%emt 0:10:20]} 16.
Nfg5 {[%emt 0:08:32]} Bxg5 {[%emt 0:07:03]} 17. Nxg5 {[%emt 0:00:58]} Rae8 {
[%emt 0:00:01]} 18. g3 {[%emt 0:12:58]} Kc8 {[%emt 0:08:14]} 19. h3 {[%emt 0:
03:52]} c5 {[%emt 0:02:26]} 20. Kg2 {[%emt 0:05:24]} Rd8 {[%emt 0:04:59]} 21.
Kf3 {[%emt 0:13:53]} Rxd2 {[%emt 0:02:11]} 22. Rxd2 {[%emt 0:00:15]} Ne7 {
[%emt 0:02:38]} 23. c4 {[%emt 0:01:53]} Rf8 {[%emt 0:03:51]} 24. Rd1 {[%emt 0:
02:03]} Rh8 {[%emt 0:01:59]} 25. Ke3 {[%emt 0:02:56]} Ng6 {[%emt 0:04:41]} 26.
f3 {[%emt 0:01:59]} Ne7 {[%emt 0:01:16]} 27. g4 {[%emt 0:04:18]} hxg4 {[%emt 0:
04:06]} 28. fxg4 {[%emt 0:00:07]} Nc6 {[%emt 0:00:39]} 29. Kf3 {[%emt 0:01:30]}
Nb4 {[%emt 0:03:10]} 30. a4 {[%emt 0:02:31]} Nc6 {[%emt 0:00:14]} 31. Bc3 {
[%emt 0:00:34]} Rd8 {[%emt 0:04:13]} 32. Rxd8+ {[%emt 0:00:08]} Kxd8 {[%emt 0:
00:46]} 33. Ke4 {[%emt 0:01:31]} Ke7 {[%emt 0:00:20]} 34. Nf3 {[%emt 0:00:23]}
Bc8 {[%emt 0:00:40]} 35. Nh4 {[%emt 0:01:20]} g6 {[%emt 0:00:46]} 36. Nf3 {
[%emt 0:02:03]} Nd8 {[%emt 0:00:26]} 37. Ke3 {[%emt 0:00:48]} Ne6 {[%emt 0:00:
51]} 38. Nd2 {[%emt 0:00:56]} Bb7 {[%emt 0:00:27]} 39. h4 {[%emt 0:00:21]} Kf8
{[%emt 0:00:31]} 40. Nf1 {[%emt 0:00:00]} a5 {[%emt 0:00:00]} 41. Ng3 {[%emt 0:
05:17]} Kg7 {[%emt 0:04:46]} 42. Ne4 {[%emt 0:00:41]} Bc6 {[%emt 0:08:51]} 43.
Nf6 {[%emt 0:04:58]} Bg2 {[%emt 0:00:33]} 44. Nd5 {[%emt 0:05:15]} Bh3 {
[%emt 0:05:39]} 45. Nf6 {[%emt 0:00:06]} Bg2 {[%emt 0:00:32]} 46. Kf2 {[%emt 0:
01:07]} Bh1 {[%emt 0:02:57]} 47. h5 {[%emt 0:00:42]} Kh6 {[%emt 0:03:26]} 48.
Bd2+ {[%emt 0:00:56]} g5 {[%emt 0:01:54]} 49. Be3 {[%emt 0:03:26]} Kg7 {
[%emt 0:00:26]} 50. Bc1 {[%emt 0:01:55]} Kh6 {[%emt 0:00:05]} 51. Ke3 {[%emt 0:
04:23]} Bg2 {[%emt 0:00:14]} 52. Kf2 {[%emt 0:02:20]} Bh1 {[%emt 0:00:04]} 53.
Kg3 {[%emt 0:00:48]} Kg7 {[%emt 0:00:12]} 54. Be3 {[%emt 0:01:14]} Kh6 {
[%emt 0:00:05]} 55. Kf2 {[%emt 0:02:39]} Kg7 {[%emt 0:00:11]} 56. Bc1 {[%emt 0:
01:06]} Kh6 {[%emt 0:00:06]} 57. Ke3 {[%emt 0:01:40]} Bg2 {[%emt 0:00:23]} 58.
Bb2 {[%emt 0:00:48]} Kg7 {[%emt 0:00:33]} 59. Ne4 {[%emt 0:00:53]} Kh6 {
[%emt 0:02:19]} 60. Bc1 {[%emt 0:00:48]} Bh1 {[%emt 0:01:15]} 61. Ng3 {[%emt 0:
01:12]} Bg2 {[%emt 0:00:09]} 62. Kf2 {[%emt 0:00:18]} Bc6 {[%emt 0:00:26]} 63.
Be3 {[%emt 0:00:28]} Bb7 {[%emt 0:00:10]} 64. Nf5+ {[%emt 0:02:39]} 1/2-1/2

[Event "36th European Club Cup 2021"]
[Site "Struga"]
[Date "2021.09.20"]
[Round "3.29"]
[White "Sadikhov, Ulvi"]
[Black "Postny, Evgeny"]
[Result "1/2-1/2"]
[ECO "A28"]
[WhiteElo "2509"]
[BlackElo "2564"]
[Annotator "ChessBase"]
[PlyCount "81"]
[EventDate "2021.09.18"]
[EventType "team-tourn"]
[EventCountry "MKD"]
[SourceTitle "playchess.com"]
[Source "ChessBase"]
[SourceQuality "1"]
[TimeControl "40/5400+30:1800+30"]

1. c4 {[%emt 0:00:04]} Nf6 {[%emt 0:00:13]} 2. Nc3 {[%emt 0:00:27]} e5 {
[%emt 0:00:16]} 3. Nf3 {[%emt 0:00:19]} Nc6 {[%emt 0:00:05]} 4. e4 {[%emt 0:00:
21]} Bb4 {[%emt 0:01:02]} 5. d3 {[%emt 0:00:18]} d6 {[%emt 0:00:05]} 6. a3 {
[%emt 0:00:19]} Bc5 {[%emt 0:00:07]} 7. b4 {[%emt 0:00:19]} Bb6 {[%emt 0:01:06]
} 8. Na4 {[%emt 0:00:20]} Bd4 {[%emt 0:01:06]} 9. Nxd4 {[%emt 0:01:08]} Nxd4 {
[%emt 0:00:05]} 10. Be2 {[%emt 0:00:14]} a5 {[%emt 0:04:20]} 11. b5 {[%emt 0:
12:56]} Nd7 {[%emt 0:10:22]} 12. Be3 {[%emt 0:05:11]} Nxe2 {[%emt 0:08:46]} 13.
Qxe2 {[%emt 0:00:16]} O-O {[%emt 0:00:06]} 14. O-O {[%emt 0:04:27]} f5 {
[%emt 0:10:30]} 15. exf5 {[%emt 0:06:05]} Rxf5 {[%emt 0:00:05]} 16. f4 {
[%emt 0:07:08]} exf4 {[%emt 0:02:09]} 17. Rxf4 {[%emt 0:17:44]} Nf8 {[%emt 0:
08:06]} 18. Rxf5 {[%emt 0:04:58]} Bxf5 {[%emt 0:00:11]} 19. Qf3 {[%emt 0:00:52]
} Qc8 {[%emt 0:11:32]} 20. Rf1 {[%emt 0:06:34]} Be6 {[%emt 0:03:09]} 21. Nc3 {
[%emt 0:01:53]} Ng6 {[%emt 0:05:37]} 22. Bd4 {[%emt 0:08:27]} c5 {[%emt 0:08:
06]} 23. bxc6 {[%emt 0:05:17]} Qxc6 {[%emt 0:00:31]} 24. Qg3 {[%emt 0:00:47]}
Rf8 {[%emt 0:17:21]} 25. Re1 {[%emt 0:02:13]} d5 {[%emt 0:02:54]} 26. cxd5 {
[%emt 0:07:07]} Bxd5 {[%emt 0:00:04]} 27. h4 {[%emt 0:00:10]} Qd7 {[%emt 0:03:
32]} 28. h5 {[%emt 0:02:25]} Nf4 {[%emt 0:00:04]} 29. h6 {[%emt 0:02:33]} Nxg2
{[%emt 0:01:51]} 30. hxg7 {[%emt 0:01:54]} Nxe1 {[%emt 0:01:04]} 31. gxf8=Q+ {
[%emt 0:01:00]} Kxf8 {[%emt 0:00:03]} 32. Bc5+ {[%emt 0:01:41]} Kf7 {[%emt 0:
00:05]} 33. Qf4+ {[%emt 0:00:37]} Kg6 {[%emt 0:00:16]} 34. Qg3+ {[%emt 0:00:45]
} Kf7 {[%emt 0:00:43]} 35. Qf4+ {[%emt 0:00:19]} Kg6 {[%emt 0:00:08]} 36. Qg3+
{[%emt 0:00:21]} Kf7 {[%emt 0:00:17]} 37. Kf2 {[%emt 0:00:54]} Nc2 {[%emt 0:01:
59]} 38. Qf4+ {[%emt 0:00:32]} Kg6 {[%emt 0:00:05]} 39. Qg3+ {[%emt 0:00:26]}
Kf7 {[%emt 0:00:08]} 40. Qf4+ {[%emt 0:00:00]} Kg6 {[%emt 0:00:00]} 41. Qg3+ {
[%emt 0:02:39]} 1/2-1/2

[Event "36th European Club Cup 2021"]
[Site "Struga"]
[Date "2021.09.20"]
[Round "3.30"]
[White "Steinberg, Nitzan"]
[Black "Ibrahimli, Murad"]
[Result "1-0"]
[ECO "C80"]
[WhiteElo "2537"]
[BlackElo "2436"]
[Annotator "ChessBase"]
[PlyCount "73"]
[EventDate "2021.09.18"]
[EventType "team-tourn"]
[EventCountry "MKD"]
[SourceTitle "playchess.com"]
[Source "ChessBase"]
[SourceQuality "1"]
[TimeControl "40/5400+30:1800+30"]

1. e4 {[%emt 0:00:05]} e5 {[%emt 0:00:18]} 2. Nf3 {[%emt 0:00:05]} Nc6 {
[%emt 0:00:08]} 3. Bb5 {[%emt 0:00:12]} a6 {[%emt 0:00:08]} 4. Ba4 {[%emt 0:00:
06]} Nf6 {[%emt 0:00:04]} 5. O-O {[%emt 0:00:07]} Nxe4 {[%emt 0:00:12]} 6. d4 {
[%emt 0:00:10]} b5 {[%emt 0:00:06]} 7. Bb3 {[%emt 0:00:05]} d5 {[%emt 0:00:11]}
8. dxe5 {[%emt 0:00:06]} Be6 {[%emt 0:00:03]} 9. Nbd2 {[%emt 0:00:35]} Nc5 {
[%emt 0:01:50]} 10. c3 {[%emt 0:00:10]} Qd7 {[%emt 0:01:11]} 11. Nd4 {[%emt 0:
13:08]} Bg4 {[%emt 0:12:49]} 12. f3 {[%emt 0:09:38]} Bh5 {[%emt 0:01:07]} 13.
Bc2 {[%emt 0:02:40]} Ne6 {[%emt 0:06:20]} 14. Nxc6 {[%emt 0:03:30]} Qxc6 {
[%emt 0:04:23]} 15. Nb3 {[%emt 0:00:06]} Qb6+ {[%emt 0:03:36]} 16. Kh1 {
[%emt 0:00:32]} Rd8 {[%emt 0:00:16]} 17. g4 {[%emt 0:06:31]} Bg6 {[%emt 0:00:
10]} 18. f4 {[%emt 0:00:18]} Bxc2 {[%emt 0:22:13]} 19. Qxc2 {[%emt 0:00:16]} d4
{[%emt 0:01:10]} 20. f5 {[%emt 0:08:21]} Qc6+ {[%emt 0:06:04]} 21. Qg2 {
[%emt 0:01:13]} Qxg2+ {[%emt 0:00:08]} 22. Kxg2 {[%emt 0:00:03]} Nc5 {[%emt 0:
00:05]} 23. cxd4 {[%emt 0:16:16]} Na4 {[%emt 0:05:27]} 24. Bg5 {[%emt 0:38:17]}
Rd5 {[%emt 0:00:47]} 25. Rac1 {[%emt 0:00:00]} Kd7 {[%emt 0:00:33]} 26. Rc2 {
[%emt 0:00:00]} Nb6 {[%emt 0:11:03]} 27. Rfc1 {[%emt 0:00:00]} Nc4 {[%emt 0:00:
44]} 28. Na5 {[%emt 0:00:00]} h6 {[%emt 0:10:29]} 29. Nxc4 {[%emt 0:00:00]}
hxg5 {[%emt 0:00:29]} 30. Ne3 {[%emt 0:00:00]} Rxd4 {[%emt 0:00:07]} 31. Rxc7+
{[%emt 0:00:00]} Ke8 {[%emt 0:00:14]} 32. Rc8+ {[%emt 0:00:00]} Rd8 {[%emt 0:
00:05]} 33. Nd5 {[%emt 0:00:00]} Rh6 {[%emt 0:01:07]} 34. R1c7 {[%emt 0:00:00]}
a5 {[%emt 0:00:41]} 35. Rxd8+ {[%emt 0:00:00]} Kxd8 {[%emt 0:00:05]} 36. Rxf7 {
[%emt 0:00:00]} Bc5 {[%emt 0:00:03]} 37. e6 {[%emt 0:00:00]} 1-0

[Event "36th European Club Cup 2021"]
[Site "Struga"]
[Date "2021.09.20"]
[Round "3.34"]
[White "Urkedal, Frode Olav Olsen"]
[Black "Van Meegen, Ruud"]
[Result "1/2-1/2"]
[ECO "D38"]
[WhiteElo "2568"]
[BlackElo "2291"]
[Annotator "ChessBase"]
[PlyCount "123"]
[EventDate "2021.09.18"]
[EventType "team-tourn"]
[EventCountry "MKD"]
[SourceTitle "playchess.com"]
[Source "ChessBase"]
[SourceQuality "1"]
[TimeControl "40/5400+30:1800+30"]

1. d4 {[%emt 0:00:38]} Nf6 {[%emt 0:00:06]} 2. c4 {[%emt 0:00:08]} e6 {[%emt 0:
00:05]} 3. Nf3 {[%emt 0:00:04]} d5 {[%emt 0:00:07]} 4. Nc3 {[%emt 0:00:13]} Bb4
{[%emt 0:00:16]} 5. Qa4+ {[%emt 0:01:02]} Nc6 {[%emt 0:00:13]} 6. a3 {[%emt 0:
00:36]} Bxc3+ {[%emt 0:00:21]} 7. bxc3 {[%emt 0:00:05]} O-O {[%emt 0:02:23]} 8.
Bg5 {[%emt 0:00:54]} h6 {[%emt 0:00:20]} 9. Bh4 {[%emt 0:00:06]} g5 {[%emt 0:
03:35]} 10. Bg3 {[%emt 0:00:40]} Ne4 {[%emt 0:00:08]} 11. Qc2 {[%emt 0:04:38]}
Kg7 {[%emt 0:11:36]} 12. e3 {[%emt 0:03:12]} h5 {[%emt 0:08:35]} 13. Ne5 {
[%emt 0:12:50]} Nxe5 {[%emt 0:04:09]} 14. Bxe5+ {[%emt 0:00:07]} f6 {[%emt 0:
00:23]} 15. Bg3 {[%emt 0:03:45]} c5 {[%emt 0:12:52]} 16. f3 {[%emt 0:01:33]}
Nxg3 {[%emt 0:00:06]} 17. hxg3 {[%emt 0:00:04]} Rh8 {[%emt 0:00:33]} 18. Kf2 {
[%emt 0:04:47]} Qd6 {[%emt 0:01:17]} 19. Bd3 {[%emt 0:01:54]} Bd7 {[%emt 0:00:
22]} 20. Qb2 {[%emt 0:08:28]} b6 {[%emt 0:01:27]} 21. Rad1 {[%emt 0:09:29]} Ba4
{[%emt 0:02:36]} 22. Bc2 {[%emt 0:04:00]} Bxc2 {[%emt 0:01:29]} 23. Qxc2 {
[%emt 0:00:06]} Rad8 {[%emt 0:06:03]} 24. cxd5 {[%emt 0:03:50]} exd5 {[%emt 0:
00:48]} 25. a4 {[%emt 0:03:23]} Qe6 {[%emt 0:03:43]} 26. a5 {[%emt 0:04:35]}
Rd7 {[%emt 0:15:19]} 27. axb6 {[%emt 0:01:29]} axb6 {[%emt 0:00:07]} 28. Rb1 {
[%emt 0:00:33]} Re7 {[%emt 0:01:02]} 29. Qd3 {[%emt 0:00:17]} Rhe8 {[%emt 0:09:
52]} 30. Rhe1 {[%emt 0:02:34]} Ra7 {[%emt 0:00:28]} 31. Re2 {[%emt 0:00:42]}
Ra3 {[%emt 0:01:13]} 32. Reb2 {[%emt 0:04:07]} cxd4 {[%emt 0:08:28]} 33. Qxd4 {
[%emt 0:06:23]} Qe5 {[%emt 0:00:10]} 34. Rb3 {[%emt 0:00:52]} Qxd4 {[%emt 0:03:
32]} 35. cxd4 {[%emt 0:00:16]} Rxb3 {[%emt 0:00:09]} 36. Rxb3 {[%emt 0:00:05]}
Re6 {[%emt 0:01:02]} 37. Rb5 {[%emt 0:01:19]} Rd6 {[%emt 0:00:12]} 38. Ke2 {
[%emt 0:00:05]} Kf7 {[%emt 0:00:19]} 39. Kd3 {[%emt 0:00:07]} f5 {[%emt 0:03:
09]} 40. Rb1 {[%emt 0:00:00]} Re6 {[%emt 0:00:00]} 41. Rc1 {[%emt 0:01:50]} Re7
{[%emt 0:06:31]} 42. Ra1 {[%emt 0:10:08]} Rb7 {[%emt 0:04:40]} 43. Rh1 {
[%emt 0:06:49]} Kg6 {[%emt 0:01:44]} 44. e4 {[%emt 0:00:11]} fxe4+ {[%emt 0:02:
12]} 45. fxe4 {[%emt 0:00:05]} dxe4+ {[%emt 0:00:11]} 46. Kxe4 {[%emt 0:00:04]}
Re7+ {[%emt 0:07:16]} 47. Kd3 {[%emt 0:00:08]} Ra7 {[%emt 0:03:19]} 48. Ke4 {
[%emt 0:03:13]} Re7+ {[%emt 0:01:33]} 49. Kd3 {[%emt 0:01:57]} Ra7 {[%emt 0:00:
05]} 50. g4 {[%emt 0:01:03]} hxg4 {[%emt 0:00:25]} 51. Rb1 {[%emt 0:00:41]} Ra2
{[%emt 0:00:55]} 52. Rxb6+ {[%emt 0:01:06]} Kf5 {[%emt 0:00:08]} 53. Rb5+ {
[%emt 0:00:10]} Kf4 {[%emt 0:00:11]} 54. g3+ {[%emt 0:00:03]} Kxg3 {[%emt 0:00:
06]} 55. Rxg5 {[%emt 0:00:04]} Kf4 {[%emt 0:01:46]} 56. Rg8 {[%emt 0:00:05]} g3
{[%emt 0:00:07]} 57. Rf8+ {[%emt 0:00:07]} Kg4 {[%emt 0:00:06]} 58. Rg8+ {
[%emt 0:00:24]} Kf3 {[%emt 0:00:21]} 59. Rf8+ {[%emt 0:00:09]} Kg4 {[%emt 0:00:
15]} 60. Rg8+ {[%emt 0:00:07]} Kf3 {[%emt 0:00:06]} 61. Rf8+ {[%emt 0:00:24]}
Kg4 {[%emt 0:00:06]} 62. Rg8+ {[%emt 0:00:07]} 1/2-1/2

[Event "36th European Club Cup 2021"]
[Site "Struga"]
[Date "2021.09.20"]
[Round "3.35"]
[White "Perkampus, Laurin"]
[Black "Haldorsen, Benjamin"]
[Result "0-1"]
[ECO "A65"]
[WhiteElo "2010"]
[BlackElo "2465"]
[Annotator "ChessBase"]
[PlyCount "104"]
[EventDate "2021.09.18"]
[EventType "team-tourn"]
[EventCountry "MKD"]
[SourceTitle "playchess.com"]
[Source "ChessBase"]
[SourceQuality "1"]
[TimeControl "40/5400+30:1800+30"]

1. d4 {[%emt 0:00:23]} Nf6 {[%emt 0:00:25]} 2. c4 {[%emt 0:00:22]} c5 {[%emt 0:
00:07]} 3. d5 {[%emt 0:00:07]} e6 {[%emt 0:00:05]} 4. Nc3 {[%emt 0:00:06]} d6 {
[%emt 0:00:04]} 5. Nf3 {[%emt 0:00:14]} g6 {[%emt 0:00:18]} 6. e4 {[%emt 1:32:
18]} Bg7 {[%emt 0:01:02]} 7. h3 {[%emt 0:00:00]} O-O {[%emt 0:00:07]} 8. Bg5 {
[%emt 0:00:00]} exd5 {[%emt 0:01:39]} 9. cxd5 {[%emt 0:00:00]} Re8 {[%emt 0:00:
21]} 10. Bd3 {[%emt 0:00:00]} a6 {[%emt 0:00:06]} 11. a4 {[%emt 0:00:00]} h6 {
[%emt 0:00:37]} 12. Be3 {[%emt 0:00:00]} Nbd7 {[%emt 0:01:04]} 13. O-O {
[%emt 0:00:00]} g5 {[%emt 0:01:14]} 14. Qd2 {[%emt 0:00:00]} Nf8 {[%emt 0:05:
28]} 15. Rae1 {[%emt 0:00:00]} g4 {[%emt 0:21:55]} 16. hxg4 {[%emt 0:00:00]}
Nxg4 {[%emt 0:00:38]} 17. Bf4 {[%emt 0:00:00]} Ng6 {[%emt 0:01:26]} 18. Bg3 {
[%emt 0:00:00]} h5 {[%emt 0:03:55]} 19. Qg5 {[%emt 0:00:00]} Bf6 {[%emt 0:01:
09]} 20. Qxh5 {[%emt 0:00:00]} Kg7 {[%emt 0:00:15]} 21. e5 {[%emt 0:00:00]}
dxe5 {[%emt 0:01:56]} 22. Bf5 {[%emt 0:00:00]} Bxf5 {[%emt 0:11:12]} 23. Qxf5 {
[%emt 0:00:00]} Qc8 {[%emt 0:00:08]} 24. Qxc8 {[%emt 0:00:00]} Raxc8 {[%emt 0:
00:12]} 25. Re4 {[%emt 0:00:00]} Nh6 {[%emt 0:00:25]} 26. Rfe1 {[%emt 0:00:27]}
Nf5 {[%emt 0:01:46]} 27. Bxe5 {[%emt 0:01:21]} Bxe5 {[%emt 0:00:19]} 28. Nxe5 {
[%emt 0:00:07]} Nd6 {[%emt 0:00:03]} 29. R4e3 {[%emt 0:01:51]} Nxe5 {[%emt 0:
01:44]} 30. Rxe5 {[%emt 0:00:56]} Rxe5 {[%emt 0:00:07]} 31. Rxe5 {[%emt 0:00:
01]} b5 {[%emt 0:00:24]} 32. Ne4 {[%emt 0:04:53]} Nxe4 {[%emt 0:09:01]} 33.
Rxe4 {[%emt 0:00:03]} Rd8 {[%emt 0:00:08]} 34. axb5 {[%emt 0:00:38]} axb5 {
[%emt 0:00:05]} 35. Re5 {[%emt 0:00:31]} b4 {[%emt 0:00:55]} 36. b3 {[%emt 0:
03:38]} f6 {[%emt 0:00:03]} 37. Rf5 {[%emt 0:00:30]} c4 {[%emt 0:00:44]} 38.
Rf4 {[%emt 0:00:27]} c3 {[%emt 0:00:14]} 39. Rc4 {[%emt 0:00:33]} Rxd5 {
[%emt 0:00:17]} 40. Kh2 {[%emt 0:00:00]} Rd1 {[%emt 0:00:00]} 41. Kg3 {[%emt 0:
13:36]} Rb1 {[%emt 0:05:54]} 42. Kf3 {[%emt 0:02:21]} Rxb3 {[%emt 0:00:25]} 43.
Ke2 {[%emt 0:01:31]} Rb2+ {[%emt 0:02:20]} 44. Kd3 {[%emt 0:01:42]} Kg6 {
[%emt 0:01:15]} 45. f3 {[%emt 0:01:11]} Kf5 {[%emt 0:00:28]} 46. g4+ {[%emt 0:
01:32]} Kg5 {[%emt 0:01:55]} 47. Rc5+ {[%emt 0:00:51]} Kh4 {[%emt 0:03:44]} 48.
Rc6 {[%emt 0:00:52]} c2 {[%emt 0:01:38]} 49. Kd2 {[%emt 0:06:59]} b3 {[%emt 0:
00:13]} 50. Rxf6 {[%emt 0:02:17]} Rb1 {[%emt 0:00:06]} 51. Rh6+ {[%emt 0:00:25]
} Kg3 {[%emt 0:00:06]} 52. Rc6 {[%emt 0:01:06]} Rd1+ {[%emt 0:00:06]} 0-1

[Event "36th European Club Cup 2021"]
[Site "Struga"]
[Date "2021.09.20"]
[Round "3.36"]
[White "Ranaldi, Lucas"]
[Black "Winkels, Marcel"]
[Result "1-0"]
[ECO "E62"]
[WhiteElo "2325"]
[BlackElo "1992"]
[Annotator "NA"]
[PlyCount "65"]
[EventDate "2021.09.18"]
[EventType "team-tourn"]
[EventCountry "MKD"]
[SourceTitle "playchess.com"]
[Source "ChessBase"]
[SourceQuality "1"]
[TimeControl "40/5400+30:1800+30"]

1. Nf3 {[%emt 0:00:04]} Nf6 {[%emt 0:00:10]} 2. c4 {[%emt 0:00:23]} g6 {
[%emt 0:00:09]} 3. Nc3 {[%emt 0:00:31]} Bg7 {[%emt 0:00:07]} 4. g3 {[%emt 0:00:
30]} O-O {[%emt 0:00:29]} 5. Bg2 {[%emt 0:00:11]} d6 {[%emt 0:00:27]} 6. d4 {
[%emt 0:00:07]} Nc6 {[%emt 0:01:28]} 7. O-O {[%emt 0:00:21]} Bf5 {[%emt 0:00:
46]} 8. Ne1 {[%emt 0:03:10]} e5 {[%emt 0:01:34]} 9. d5 {[%emt 0:01:23]} Ne7 {
[%emt 0:01:01]} 10. e4 {[%emt 0:01:20]} Bd7 {[%emt 0:04:08]} 11. Nd3 {[%emt 0:
02:36]} Ne8 {[%emt 0:04:26]} 12. f4 {[%emt 0:03:25]} a6 {[%emt 0:12:30]} 13.
fxe5 {[%emt 0:03:00]} dxe5 {[%emt 0:01:13]} 14. Be3 {[%emt 0:01:49]} Kh8 {
[%emt 0:06:12]} 15. Qd2 {[%emt 0:02:35]} Ng8 {[%emt 0:02:23]} 16. Rf2 {[%emt 0:
07:36]} Nd6 {[%emt 0:06:20]} 17. b3 {[%emt 0:00:52]} f5 {[%emt 0:03:49]} 18.
Re1 {[%emt 0:12:36]} fxe4 {[%emt 0:07:19]} 19. Rxf8 {[%emt 0:01:03]} Qxf8 {
[%emt 0:00:43]} 20. Nc5 {[%emt 0:01:23]} Qe7 {[%emt 0:06:59]} 21. N3xe4 {
[%emt 0:12:49]} Nxe4 {[%emt 0:05:18]} 22. Bxe4 {[%emt 0:01:18]} Nf6 {[%emt 0:
04:15]} 23. Bg2 {[%emt 0:01:36]} Bc8 {[%emt 0:04:17]} 24. h3 {[%emt 0:09:10]}
Rb8 {[%emt 0:03:54]} 25. Kh2 {[%emt 0:06:17]} b6 {[%emt 0:03:36]} 26. Nd3 {
[%emt 0:01:23]} Bf5 {[%emt 0:02:21]} 27. Nxe5 {[%emt 0:09:55]} Qxe5 {[%emt 0:
13:30]} 28. Bf4 {[%emt 0:00:16]} Qc3 {[%emt 0:01:53]} 29. Qxc3 {[%emt 0:00:09]}
Ng4+ {[%emt 0:00:06]} 30. hxg4 {[%emt 0:00:07]} Bxc3 {[%emt 0:00:08]} 31. Re3 {
[%emt 0:02:59]} Bd2 {[%emt 0:01:08]} 32. Be5+ {[%emt 0:01:02]} Kg8 {[%emt 0:00:
52]} 33. Re2 {[%emt 0:00:08]} 1-0